[Event "Titled Tuesday Blitz April 4 Early 2023"]
[White "Shvedova, Alexandra"]
[Black "Dehtiarov, Roman"]
[WhiteFideId "54154782"]
[BlackFideId "14186640"]
[WhiteElo "2057"]
[BlackElo "2189"]
[Result "1/2-1/2"]
[Round "01"]
[TimeControl "180+2"]
[Date "2023.04.04"]
[WhiteClock "0:00:11"]
[BlackClock "0:00:10"]

1. d4 {[%clk 0:02:59]}  Nf6 {[%clk 0:02:54]} 2. c4 {[%clk 0:02:59]}  e6 {[%clk 0:02:53]} 3. Nf3 {[%clk 0:03:00]}  b6 {[%clk 0:02:47]} 4. g3 {[%clk 0:02:59]}  Ba6 {[%clk 0:02:45]} 5. Qc2 {[%clk 0:02:57]}  c5 {[%clk 0:02:43]} 6. Bg2 {[%clk 0:02:56]}  Bb7 {[%clk 0:02:39]} 7. O-O {[%clk 0:02:41]}  d6 {[%clk 0:02:34]} 8. Nc3 {[%clk 0:02:39]}  Be7 {[%clk 0:02:33]} 9. e4 {[%clk 0:02:35]}  O-O {[%clk 0:02:29]} 10. d5 {[%clk 0:02:31]}  e5 {[%clk 0:02:28]} 11. h3 {[%clk 0:02:29]}  a6 {[%clk 0:02:27]} 12. a4 {[%clk 0:02:28]}  Nbd7 {[%clk 0:02:25]} 13. Be3 {[%clk 0:02:27]}  Ne8 {[%clk 0:02:24]} 14. Nd2 {[%clk 0:02:20]}  Bf6 {[%clk 0:02:20]} 15. Kh2 {[%clk 0:02:18]}  g6 {[%clk 0:02:20]} 16. f4 {[%clk 0:02:01]}  Bg7 {[%clk 0:02:19]} 17. Nf3 {[%clk 0:02:00]}  exf4 {[%clk 0:02:19]} 18. gxf4 {[%clk 0:02:01]}  f5 {[%clk 0:02:19]} 19. Ng5 {[%clk 0:01:57]}  Nc7 {[%clk 0:02:16]} 20. exf5 {[%clk 0:01:55]}  Rxf5 {[%clk 0:02:11]} 21. Be4 {[%clk 0:01:48]}  Rf8 {[%clk 0:02:03]} 22. Ne6 {[%clk 0:01:44]}  Nxe6 {[%clk 0:02:02]} 23. dxe6 {[%clk 0:01:45]}  Bxe4 {[%clk 0:02:00]} 24. Qxe4 {[%clk 0:01:44]}  Nf6 {[%clk 0:02:01]} 25. e7 {[%clk 0:01:39]}  Nxe4 {[%clk 0:01:57]} 26. exd8=Q {[%clk 0:01:38]}  Raxd8 {[%clk 0:01:57]} 27. Nxe4 {[%clk 0:01:38]}  Rfe8 {[%clk 0:01:58]} 28. Bxc5 {[%clk 0:01:21]}  dxc5 {[%clk 0:01:56]} 29. Rfe1 {[%clk 0:01:20]}  h6 {[%clk 0:01:43]} 30. a5 {[%clk 0:01:11]}  bxa5 {[%clk 0:01:36]} 31. Nxc5 {[%clk 0:01:07]}  Rxe1 {[%clk 0:01:34]} 32. Rxe1 {[%clk 0:01:08]}  Rd2+ {[%clk 0:01:31]} 33. Kg3 {[%clk 0:01:07]}  Bd4 {[%clk 0:01:32]} 34. Ne4 {[%clk 0:01:03]}  Rxb2 {[%clk 0:01:31]} 35. Rd1 {[%clk 0:01:03]}  Rb3+ {[%clk 0:01:28]} 36. Kg4 {[%clk 0:01:00]}  Bg7 {[%clk 0:01:28]} 37. Rd6 {[%clk 0:00:57]}  Kh7 {[%clk 0:01:28]} 38. Rxa6 {[%clk 0:00:56]}  Rb4 {[%clk 0:01:12]} 39. Rxa5 {[%clk 0:00:49]}  Rxc4 {[%clk 0:01:10]} 40. Nd6 {[%clk 0:00:49]}  Rc3 {[%clk 0:01:07]} 41. Ne4 {[%clk 0:00:47]}  Re3 {[%clk 0:01:06]} 42. Ra4 {[%clk 0:00:44]}  h5+ {[%clk 0:00:57]} 43. Kh4 {[%clk 0:00:42]}  Kh6 {[%clk 0:00:54]} 44. Rc4 {[%clk 0:00:36]}  Bf8 {[%clk 0:00:52]} 45. Ng5 {[%clk 0:00:30]}  Be7 {[%clk 0:00:51]} 46. Rc7 {[%clk 0:00:27]}  Re4 {[%clk 0:00:32]} 47. Kg3 {[%clk 0:00:25]}  Bxg5 {[%clk 0:00:29]} 48. fxg5+ {[%clk 0:00:26]}  Kxg5 {[%clk 0:00:30]} 49. Rc5+ {[%clk 0:00:25]}  Kh6 {[%clk 0:00:30]} 50. Rc6 {[%clk 0:00:25]}  Ra4 {[%clk 0:00:31]} 51. Rb6 {[%clk 0:00:25]}  Ra8 {[%clk 0:00:31]} 52. Rc6 {[%clk 0:00:25]}  Rf8 {[%clk 0:00:31]} 53. Rb6 {[%clk 0:00:25]}  Kg5 {[%clk 0:00:31]} 54. Rb5+ {[%clk 0:00:24]}  Rf5 {[%clk 0:00:24]} 55. Rb6 {[%clk 0:00:22]}  h4+ {[%clk 0:00:22]} 56. Kg2 {[%clk 0:00:21]}  Ra5 {[%clk 0:00:23]} 57. Rb4 {[%clk 0:00:20]}  Ra2+ {[%clk 0:00:22]} 58. Kg1 {[%clk 0:00:20]}  Kh5 {[%clk 0:00:20]} 59. Rb5+ {[%clk 0:00:18]}  g5 {[%clk 0:00:20]} 60. Rb4 {[%clk 0:00:19]}  Kg6 {[%clk 0:00:21]} 61. Rc4 {[%clk 0:00:17]}  Kf5 {[%clk 0:00:20]} 62. Rb4 {[%clk 0:00:17]}  Re2 {[%clk 0:00:20]} 63. Ra4 {[%clk 0:00:16]}  Re4 {[%clk 0:00:20]} 64. Ra8 {[%clk 0:00:16]}  Kf4 {[%clk 0:00:20]} 65. Rg8 {[%clk 0:00:15]}  Rb4 {[%clk 0:00:17]} 66. Kg2 {[%clk 0:00:14]}  Rb2+ {[%clk 0:00:17]} 67. Kg1 {[%clk 0:00:15]}  Rb5 {[%clk 0:00:16]} 68. Kg2 {[%clk 0:00:15]}  Kf5 {[%clk 0:00:12]} 69. Rg7 {[%clk 0:00:12]}  Rb6 {[%clk 0:00:12]} 70. Rg8 {[%clk 0:00:12]}  Rf6 {[%clk 0:00:12]} 71. Rg7 {[%clk 0:00:12]}  Kf4 {[%clk 0:00:12]} 72. Rg8 {[%clk 0:00:12]}  Re6 {[%clk 0:00:13]} 73. Rf8+ {[%clk 0:00:12]}  Ke5 {[%clk 0:00:13]} 74. Rg8 {[%clk 0:00:12]}  Kf5 {[%clk 0:00:13]} 75. Rf8+ {[%clk 0:00:13]}  Kg6 {[%clk 0:00:13]} 76. Rg8+ {[%clk 0:00:13]}  Kf6 {[%clk 0:00:14]} 77. Rf8+ {[%clk 0:00:13]}  Kg7 {[%clk 0:00:15]} 78. Rf5 {[%clk 0:00:13]}  Kg6 {[%clk 0:00:15]} 79. Rf8 {[%clk 0:00:13]}  Rb6 {[%clk 0:00:16]} 80. Rg8+ {[%clk 0:00:13]}  Kf5 {[%clk 0:00:16]} 81. Rf8+ {[%clk 0:00:13]}  Rf6 {[%clk 0:00:14]} 82. Rg8 {[%clk 0:00:14]}  Kf4 {[%clk 0:00:15]} 83. Rg7 {[%clk 0:00:13]}  Rf5 {[%clk 0:00:15]} 84. Rg8 {[%clk 0:00:13]}  Re5 {[%clk 0:00:10]} 85. Rf8+ {[%clk 0:00:13]}  Rf5 {[%clk 0:00:10]} 86. Rg8 {[%clk 0:00:13]}  Rb5 {[%clk 0:00:11]} 87. Rf8+ {[%clk 0:00:14]}  Ke4 {[%clk 0:00:11]} 88. Re8+ {[%clk 0:00:13]}  Re5 {[%clk 0:00:10]} 89. Rg8 {[%clk 0:00:13]}  Ke3 {[%clk 0:00:10]} 90. Rg7 {[%clk 0:00:13]}  Ke2 {[%clk 0:00:09]} 91. Rg8 {[%clk 0:00:13]}  Kd3 {[%clk 0:00:09]} 92. Rg7 {[%clk 0:00:13]}  Kd4 {[%clk 0:00:09]} 93. Rg8 {[%clk 0:00:13]}  Ke4 {[%clk 0:00:09]} 94. Rg7 {[%clk 0:00:13]}  Kf5 {[%clk 0:00:09]} 95. Rg8 {[%clk 0:00:14]}  Re6 {[%clk 0:00:10]} 96. Rf8+ {[%clk 0:00:14]}  Kg6 {[%clk 0:00:10]} 97. Rg8+ {[%clk 0:00:14]}  Kf6 {[%clk 0:00:11]} 98. Rf8+ {[%clk 0:00:15]}  Kg7 {[%clk 0:00:11]} 99. Rf5 {[%clk 0:00:15]}  Kh6 {[%clk 0:00:12]} 100. Rf8 {[%clk 0:00:13]}  Re7 {[%clk 0:00:12]} 101. Rf5 {[%clk 0:00:12]}  Ra7 {[%clk 0:00:12]} 102. Rf8 {[%clk 0:00:10]}  Kg6 {[%clk 0:00:12]} 103. Rg8+ {[%clk 0:00:11]}  Rg7 {[%clk 0:00:10]} 104. Rf8 {[%clk 0:00:11]}  Kh7 {[%clk 0:00:10]} 105. Rf5 {[%clk 0:00:11]}  Kh6 {[%clk 0:00:10]} 106. Rf6+ {[%clk 0:00:11]}  Kh5 {[%clk 0:00:10]} 107. Rf8 {[%clk 0:00:11]}  Rg6 {[%clk 0:00:11]} 108. Rh8+ {[%clk 0:00:11]}  Rh6 {[%clk 0:00:11]} 109. Rg8 {[%clk 0:00:11]}  Rb6 {[%clk 0:00:10]} 1/2-1/2


[Site "https://www.chess.com"]

[Event "Titled Tuesday Blitz April 4 Early 2023"]
[White "Maxfan2008"]
[Black "Zhao, Jun"]
[BlackFideId "8602522"]
[WhiteElo "2433"]
[BlackElo "2547"]
[Result "0-1"]
[Round "01"]
[TimeControl "180+2"]
[Date "2023.04.04"]
[WhiteClock "0:01:37"]
[BlackClock "0:02:01"]

1. d4 {[%clk 0:02:59]}  Nf6 {[%clk 0:02:59]} 2. c4 {[%clk 0:02:59]}  e6 {[%clk 0:03:00]} 3. Nc3 {[%clk 0:03:00]}  Bb4 {[%clk 0:02:59]} 4. Nf3 {[%clk 0:03:00]}  d5 {[%clk 0:02:58]} 5. cxd5 {[%clk 0:02:59]}  exd5 {[%clk 0:02:58]} 6. Bg5 {[%clk 0:03:00]}  h6 {[%clk 0:02:57]} 7. Bh4 {[%clk 0:03:00]}  c5 {[%clk 0:02:55]} 8. e3 {[%clk 0:02:59]}  c4 {[%clk 0:02:49]} 9. Be2 {[%clk 0:02:56]}  O-O {[%clk 0:02:46]} 10. O-O {[%clk 0:02:56]}  Bxc3 {[%clk 0:02:47]} 11. bxc3 {[%clk 0:02:55]}  g5 {[%clk 0:02:45]} 12. Bg3 {[%clk 0:02:54]}  Bf5 {[%clk 0:02:45]} 13. Ne5 {[%clk 0:02:51]}  Ne4 {[%clk 0:02:43]} 14. Qe1 {[%clk 0:02:50]}  Nd7 {[%clk 0:02:40]} 15. f4 {[%clk 0:02:50]}  f6 {[%clk 0:02:32]} 16. Nxd7 {[%clk 0:02:29]}  Qxd7 {[%clk 0:02:32]} 17. Bf3 {[%clk 0:02:17]}  b5 {[%clk 0:02:28]} 18. Bxe4 {[%clk 0:02:17]}  Bxe4 {[%clk 0:02:27]} 19. fxg5 {[%clk 0:02:17]}  hxg5 {[%clk 0:02:26]} 20. Rf2 {[%clk 0:02:08]}  Rae8 {[%clk 0:02:20]} 21. Qd1 {[%clk 0:02:01]}  Bd3 {[%clk 0:02:18]} 22. Rf3 {[%clk 0:01:48]}  a5 {[%clk 0:02:16]} 23. Bf2 {[%clk 0:01:47]}  b4 {[%clk 0:02:16]} 24. Rh3 {[%clk 0:01:44]}  bxc3 {[%clk 0:02:11]} 25. Qh5 {[%clk 0:01:39]}  Qg7 {[%clk 0:02:11]} 26. Rc1 {[%clk 0:01:38]}  c2 {[%clk 0:02:11]} 27. Be1 {[%clk 0:01:38]}  Rb8 {[%clk 0:02:10]} 28. Bxa5 {[%clk 0:01:35]}  Rb1 {[%clk 0:02:10]} 29. Bd2 {[%clk 0:01:35]}  c3 {[%clk 0:02:05]} 30. Bxc3 {[%clk 0:01:35]}  Rxc1+ {[%clk 0:02:05]} 31. Kf2 {[%clk 0:01:36]}  Rf1+ {[%clk 0:02:05]} 32. Kg3 {[%clk 0:01:37]}  Qc7+ {[%clk 0:02:02]} 33. Kg4 {[%clk 0:01:37]}  Bf5# {[%clk 0:02:01]} 0-1


[Site "https://www.chess.com"]

[Event "Titled Tuesday Blitz April 4 Early 2023"]
[White "Boyer, Mahel"]
[Black "Kashtanov, Ruslan"]
[WhiteFideId "45102422"]
[BlackFideId "4124871"]
[WhiteElo "2439"]
[BlackElo "2276"]
[Result "1-0"]
[Round "01"]
[TimeControl "180+2"]
[Date "2023.04.04"]
[WhiteClock "0:00:41"]
[BlackClock "0:00:01"]

1. e4 {[%clk 0:02:58]}  c5 {[%clk 0:02:59]} 2. d3 {[%clk 0:02:57]}  Nc6 {[%clk 0:02:57]} 3. g3 {[%clk 0:02:56]}  g6 {[%clk 0:02:52]} 4. Bg2 {[%clk 0:02:54]}  Bg7 {[%clk 0:02:52]} 5. f4 {[%clk 0:02:53]}  d6 {[%clk 0:02:46]} 6. Nf3 {[%clk 0:02:54]}  f5 {[%clk 0:02:45]} 7. O-O {[%clk 0:02:44]}  Nh6 {[%clk 0:02:37]} 8. c3 {[%clk 0:02:43]}  O-O {[%clk 0:02:36]} 9. h3 {[%clk 0:02:13]}  c4 {[%clk 0:02:10]} 10. dxc4 {[%clk 0:02:05]}  fxe4 {[%clk 0:02:02]} 11. Ng5 {[%clk 0:02:01]}  Kh8 {[%clk 0:02:03]} 12. Nxe4 {[%clk 0:01:53]}  Kg8 {[%clk 0:02:03]} 13. g4 {[%clk 0:01:50]}  Kh8 {[%clk 0:01:25]} 14. Be3 {[%clk 0:01:43]}  Be6 {[%clk 0:01:16]} 15. Nbd2 {[%clk 0:01:42]}  d5 {[%clk 0:01:05]} 16. Ng5 {[%clk 0:01:41]}  Bg8 {[%clk 0:01:04]} 17. cxd5 {[%clk 0:01:41]}  Bxd5 {[%clk 0:01:04]} 18. Bxd5 {[%clk 0:01:41]}  Qxd5 {[%clk 0:01:03]} 19. Qb3 {[%clk 0:01:42]}  Qd3 {[%clk 0:00:58]} 20. Rae1 {[%clk 0:01:28]}  e5 {[%clk 0:00:43]} 21. Qc4 {[%clk 0:00:54]}  Qd7 {[%clk 0:00:19]} 22. Nde4 {[%clk 0:00:47]}  exf4 {[%clk 0:00:18]} 23. Bxf4 {[%clk 0:00:48]}  Rae8 {[%clk 0:00:15]} 24. Nd6 {[%clk 0:00:45]}  Rxe1 {[%clk 0:00:10]} 25. Rxe1 {[%clk 0:00:46]}  Rxf4 {[%clk 0:00:09]} 26. Qxf4 {[%clk 0:00:46]}  Be5 {[%clk 0:00:01]} 27. Qf8+ {[%clk 0:00:41]} 1-0


[Site "https://www.chess.com"]

[Event "Titled Tuesday Blitz April 4 Early 2023"]
[White "Hindermann, Felix"]
[Black "Gokerkan, Cem Kaan"]
[WhiteFideId "1305212"]
[BlackFideId "6336760"]
[WhiteElo "2206"]
[BlackElo "2365"]
[Result "0-1"]
[Round "01"]
[TimeControl "180+2"]
[Date "2023.04.04"]
[WhiteClock "0:00:05"]
[BlackClock "0:00:12"]

1. e4 {[%clk 0:02:59]}  e5 {[%clk 0:02:58]} 2. Nf3 {[%clk 0:02:59]}  Nf6 {[%clk 0:02:58]} 3. Nc3 {[%clk 0:02:57]}  Nc6 {[%clk 0:02:57]} 4. Bb5 {[%clk 0:02:56]}  Bb4 {[%clk 0:02:55]} 5. O-O {[%clk 0:02:56]}  O-O {[%clk 0:02:54]} 6. d3 {[%clk 0:02:57]}  d6 {[%clk 0:02:54]} 7. Bg5 {[%clk 0:02:57]}  h6 {[%clk 0:02:53]} 8. Bxf6 {[%clk 0:02:56]}  Qxf6 {[%clk 0:02:53]} 9. Nd5 {[%clk 0:02:56]}  Qd8 {[%clk 0:02:38]} 10. Bxc6 {[%clk 0:02:56]}  bxc6 {[%clk 0:02:32]} 11. Nxb4 {[%clk 0:02:57]}  a5 {[%clk 0:02:29]} 12. Nxc6 {[%clk 0:02:57]}  Qe8 {[%clk 0:02:27]} 13. Ncxe5 {[%clk 0:02:57]}  dxe5 {[%clk 0:02:28]} 14. Nd2 {[%clk 0:02:49]}  Be6 {[%clk 0:02:24]} 15. b3 {[%clk 0:02:46]}  a4 {[%clk 0:02:23]} 16. Nc4 {[%clk 0:02:46]}  f6 {[%clk 0:02:17]} 17. Qd2 {[%clk 0:02:43]}  Qc6 {[%clk 0:02:12]} 18. f4 {[%clk 0:02:39]}  exf4 {[%clk 0:02:10]} 19. Qxf4 {[%clk 0:02:38]}  Rfd8 {[%clk 0:01:57]} 20. h3 {[%clk 0:02:36]}  Ra6 {[%clk 0:01:47]} 21. Kh2 {[%clk 0:02:32]}  Rda8 {[%clk 0:01:46]} 22. Rae1 {[%clk 0:02:23]}  axb3 {[%clk 0:01:43]} 23. axb3 {[%clk 0:02:23]}  Ra2 {[%clk 0:01:44]} 24. Rf2 {[%clk 0:02:14]}  Rd8 {[%clk 0:01:36]} 25. Re3 {[%clk 0:02:05]}  Qc5 {[%clk 0:01:34]} 26. Rg3 {[%clk 0:02:03]}  Kh8 {[%clk 0:01:22]} 27. Ne3 {[%clk 0:01:05]}  Rd7 {[%clk 0:01:14]} 28. Ng4 {[%clk 0:00:46]}  Bxg4 {[%clk 0:00:57]} 29. Qxg4 {[%clk 0:00:47]}  Qd6 {[%clk 0:00:39]} 30. Qg6 {[%clk 0:00:40]}  Re7 {[%clk 0:00:34]} 31. Qg4 {[%clk 0:00:25]}  Qd4 {[%clk 0:00:29]} 32. Qf4 {[%clk 0:00:22]}  Ra1 {[%clk 0:00:26]} 33. Rg6 {[%clk 0:00:21]}  Kh7 {[%clk 0:00:20]} 34. Qf5 {[%clk 0:00:20]}  Kh8 {[%clk 0:00:14]} 35. g3 {[%clk 0:00:17]}  Re5 {[%clk 0:00:13]} 36. Qc8+ {[%clk 0:00:13]}  Kh7 {[%clk 0:00:13]} 37. Rfxf6 {[%clk 0:00:05]}  Qg1# {[%clk 0:00:12]} 0-1


[Site "https://www.chess.com"]

[Event "Titled Tuesday Blitz April 4 Early 2023"]
[White "Vivas Zamora, Fabian Ernesto"]
[Black "Remizov, Yaroslav"]
[WhiteFideId "3902480"]
[BlackFideId "34134015"]
[WhiteElo "2262"]
[BlackElo "2412"]
[Result "1/2-1/2"]
[Round "01"]
[TimeControl "180+2"]
[Date "2023.04.04"]
[WhiteClock "0:00:11"]
[BlackClock "0:00:09"]

1. e4 {[%clk 0:02:58]}  c6 {[%clk 0:02:59]} 2. Nf3 {[%clk 0:02:56]}  d5 {[%clk 0:02:59]} 3. Nc3 {[%clk 0:02:57]}  dxe4 {[%clk 0:03:00]} 4. Nxe4 {[%clk 0:02:58]}  Nf6 {[%clk 0:03:00]} 5. Qe2 {[%clk 0:02:56]}  Nxe4 {[%clk 0:03:01]} 6. Qxe4 {[%clk 0:02:57]}  Qd5 {[%clk 0:03:01]} 7. Qh4 {[%clk 0:02:56]}  Qe6+ {[%clk 0:03:01]} 8. Be2 {[%clk 0:02:56]}  Qg6 {[%clk 0:03:02]} 9. O-O {[%clk 0:02:43]}  Qxc2 {[%clk 0:03:02]} 10. b3 {[%clk 0:02:23]}  Qf5 {[%clk 0:03:02]} 11. Nd4 {[%clk 0:01:40]}  Qf6 {[%clk 0:02:45]} 12. Qe4 {[%clk 0:01:25]}  Nd7 {[%clk 0:02:30]} 13. Bb2 {[%clk 0:01:21]}  Qg6 {[%clk 0:02:27]} 14. Qe3 {[%clk 0:01:17]}  Nf6 {[%clk 0:02:17]} 15. Bf3 {[%clk 0:01:07]}  Bd7 {[%clk 0:02:08]} 16. Rac1 {[%clk 0:00:53]}  e6 {[%clk 0:02:04]} 17. Ne2 {[%clk 0:00:30]}  Be7 {[%clk 0:01:52]} 18. Ng3 {[%clk 0:00:25]}  O-O {[%clk 0:01:40]} 19. h4 {[%clk 0:00:25]}  Nd5 {[%clk 0:01:06]} 20. Bxd5 {[%clk 0:00:19]}  cxd5 {[%clk 0:01:06]} 21. h5 {[%clk 0:00:14]}  Qg5 {[%clk 0:01:03]} 22. Rc7 {[%clk 0:00:13]}  Rfd8 {[%clk 0:00:59]} 23. Rxb7 {[%clk 0:00:10]}  Qxe3 {[%clk 0:00:50]} 24. dxe3 {[%clk 0:00:09]}  Bd6 {[%clk 0:00:51]} 25. Rc1 {[%clk 0:00:05]}  Bc8 {[%clk 0:00:38]} 26. Rb5 {[%clk 0:00:03]}  Bd7 {[%clk 0:00:39]} 27. Rb7 {[%clk 0:00:03]}  f6 {[%clk 0:00:34]} 28. Bd4 {[%clk 0:00:03]}  Kf8 {[%clk 0:00:21]} 29. h6 {[%clk 0:00:03]}  Be7 {[%clk 0:00:13]} 30. hxg7+ {[%clk 0:00:03]}  Kxg7 {[%clk 0:00:14]} 31. Nh5+ {[%clk 0:00:04]}  Kf7 {[%clk 0:00:14]} 32. Rcc7 {[%clk 0:00:03]}  Ke8 {[%clk 0:00:09]} 33. Bxf6 {[%clk 0:00:04]}  Rac8 {[%clk 0:00:07]} 34. Bxe7 {[%clk 0:00:04]}  Rxc7 {[%clk 0:00:07]} 35. Rxc7 {[%clk 0:00:04]}  Kxe7 {[%clk 0:00:08]} 36. Rxa7 {[%clk 0:00:05]}  Kd6 {[%clk 0:00:08]} 37. Nf4 {[%clk 0:00:04]}  Rc8 {[%clk 0:00:08]} 38. Ra6+ {[%clk 0:00:05]}  Ke7 {[%clk 0:00:08]} 39. Nd3 {[%clk 0:00:04]}  Rc3 {[%clk 0:00:08]} 40. Ne5 {[%clk 0:00:05]}  Rc1+ {[%clk 0:00:09]} 41. Kh2 {[%clk 0:00:04]}  Bb5 {[%clk 0:00:09]} 42. Ra7+ {[%clk 0:00:04]}  Kd6 {[%clk 0:00:08]} 43. Nf3 {[%clk 0:00:03]}  Bd3 {[%clk 0:00:08]} 44. Ra6+ {[%clk 0:00:03]}  Ke7 {[%clk 0:00:08]} 45. Ra7+ {[%clk 0:00:03]}  Kd6 {[%clk 0:00:08]} 46. Kg3 {[%clk 0:00:04]}  e5 {[%clk 0:00:08]} 47. Rg7 {[%clk 0:00:03]}  Bg6 {[%clk 0:00:07]} 48. Ra7 {[%clk 0:00:02]}  Rc2 {[%clk 0:00:07]} 49. Ng5 {[%clk 0:00:02]}  d4 {[%clk 0:00:07]} 50. exd4 {[%clk 0:00:02]}  exd4 {[%clk 0:00:08]} 51. Ra6+ {[%clk 0:00:03]}  Kc5 {[%clk 0:00:08]} 52. Ra8 {[%clk 0:00:03]}  d3 {[%clk 0:00:08]} 53. Rd8 {[%clk 0:00:03]}  Kb4 {[%clk 0:00:09]} 54. Ne6 {[%clk 0:00:04]}  Kc3 {[%clk 0:00:07]} 55. Nf4 {[%clk 0:00:03]}  d2 {[%clk 0:00:07]} 56. a4 {[%clk 0:00:02]}  Rc1 {[%clk 0:00:07]} 57. Ne2+ {[%clk 0:00:02]}  Kb2 {[%clk 0:00:07]} 58. Rxd2+ {[%clk 0:00:01]}  Rc2 {[%clk 0:00:07]} 59. Rxc2+ {[%clk 0:00:02]}  Bxc2 {[%clk 0:00:07]} 60. Nd4 {[%clk 0:00:02]}  Bd1 {[%clk 0:00:08]} 61. a5 {[%clk 0:00:02]}  Kc3 {[%clk 0:00:05]} 62. a6 {[%clk 0:00:02]}  Bxb3 {[%clk 0:00:02]} 63. a7 {[%clk 0:00:03]}  Bd5 {[%clk 0:00:02]} 64. Nb5+ {[%clk 0:00:03]}  Kc4 {[%clk 0:00:01]} 65. Nc7 {[%clk 0:00:04]}  Bb7 {[%clk 0:00:02]} 66. a8=Q {[%clk 0:00:04]}  Bxa8 {[%clk 0:00:03]} 67. Nxa8 {[%clk 0:00:05]}  Kd5 {[%clk 0:00:04]} 68. Kf4 {[%clk 0:00:06]}  Ke6 {[%clk 0:00:05]} 69. Kg5 {[%clk 0:00:07]}  Kf7 {[%clk 0:00:06]} 70. f4 {[%clk 0:00:08]}  Kg8 {[%clk 0:00:06]} 71. Kh6 {[%clk 0:00:08]}  Kf7 {[%clk 0:00:07]} 72. g4 {[%clk 0:00:09]}  Kg8 {[%clk 0:00:07]} 73. Nb6 {[%clk 0:00:09]}  Kf7 {[%clk 0:00:08]} 74. Nd5 {[%clk 0:00:10]}  Kg8 {[%clk 0:00:08]} 75. g5 {[%clk 0:00:10]}  Kh8 {[%clk 0:00:09]} 76. Nf6 {[%clk 0:00:11]} 1/2-1/2


[Site "https://www.chess.com"]

[Event "Titled Tuesday Blitz April 4 Early 2023"]
[White "Wagner, Dennis"]
[Black "Goncalves, Davi Sulzbacher"]
[WhiteFideId "24650684"]
[BlackFideId "2154510"]
[WhiteElo "2470"]
[BlackElo "2182"]
[Result "1-0"]
[Round "01"]
[TimeControl "180+2"]
[Date "2023.04.04"]
[WhiteClock "0:00:25"]
[BlackClock "0:00:15"]

1. d4 {[%clk 0:03:00]}  Nf6 {[%clk 0:02:58]} 2. Nf3 {[%clk 0:03:01]}  g6 {[%clk 0:02:58]} 3. g3 {[%clk 0:02:56]}  Bg7 {[%clk 0:02:58]} 4. Bg2 {[%clk 0:02:57]}  O-O {[%clk 0:02:58]} 5. O-O {[%clk 0:02:58]}  d5 {[%clk 0:02:59]} 6. c3 {[%clk 0:02:57]}  c6 {[%clk 0:02:58]} 7. a4 {[%clk 0:02:55]}  a5 {[%clk 0:02:57]} 8. Bf4 {[%clk 0:02:55]}  Bf5 {[%clk 0:02:56]} 9. Nbd2 {[%clk 0:02:53]}  Qb6 {[%clk 0:02:53]} 10. Qc1 {[%clk 0:02:32]}  Nbd7 {[%clk 0:02:51]} 11. Nh4 {[%clk 0:02:32]}  Bg4 {[%clk 0:02:48]} 12. Re1 {[%clk 0:02:31]}  c5 {[%clk 0:02:41]} 13. h3 {[%clk 0:02:23]}  Be6 {[%clk 0:02:39]} 14. Nhf3 {[%clk 0:02:15]}  Rfc8 {[%clk 0:02:35]} 15. g4 {[%clk 0:02:12]}  Ne4 {[%clk 0:02:28]} 16. e3 {[%clk 0:02:06]}  h6 {[%clk 0:02:12]} 17. Ra3 {[%clk 0:02:00]}  g5 {[%clk 0:01:57]} 18. Bh2 {[%clk 0:02:00]}  Qa6 {[%clk 0:01:35]} 19. Bf1 {[%clk 0:01:54]}  Qa7 {[%clk 0:01:10]} 20. Qb1 {[%clk 0:01:54]}  Nxd2 {[%clk 0:01:06]} 21. Nxd2 {[%clk 0:01:54]}  Rf8 {[%clk 0:00:55]} 22. Bd3 {[%clk 0:01:52]}  Rac8 {[%clk 0:00:53]} 23. Nf3 {[%clk 0:01:45]}  b6 {[%clk 0:00:48]} 24. Kg2 {[%clk 0:01:45]}  Nf6 {[%clk 0:00:47]} 25. Be5 {[%clk 0:01:40]}  Qb7 {[%clk 0:00:42]} 26. Bc2 {[%clk 0:01:30]}  Ne4 {[%clk 0:00:37]} 27. Rb3 {[%clk 0:00:56]}  f6 {[%clk 0:00:33]} 28. Bh2 {[%clk 0:00:52]}  f5 {[%clk 0:00:27]} 29. Ne5 {[%clk 0:00:25]}  Bxe5 {[%clk 0:00:22]} 30. Bxe5 {[%clk 0:00:25]}  c4 {[%clk 0:00:20]} 31. Rb5 {[%clk 0:00:23]}  Bd7 {[%clk 0:00:16]} 32. gxf5 {[%clk 0:00:24]}  Bxb5 {[%clk 0:00:16]} 33. axb5 {[%clk 0:00:24]}  Rxf5 {[%clk 0:00:15]} 34. f3 {[%clk 0:00:24]}  Nd6 {[%clk 0:00:15]} 35. Bxf5 {[%clk 0:00:24]}  Nxf5 {[%clk 0:00:15]} 36. Qxf5 {[%clk 0:00:25]}  Rf8 {[%clk 0:00:15]} 37. Qg6# {[%clk 0:00:25]} 1-0


[Site "https://www.chess.com"]

[Event "Titled Tuesday Blitz April 4 Early 2023"]
[White "Kielinkei"]
[Black "Kilic, Eray"]
[BlackFideId "44517173"]
[WhiteElo "2426"]
[BlackElo "2328"]
[Result "0-1"]
[Round "01"]
[TimeControl "180+2"]
[Date "2023.04.04"]
[WhiteClock "0:00:08"]
[BlackClock "0:00:49"]

1. Nf3 {[%clk 0:02:59]}  Nf6 {[%clk 0:02:59]} 2. g3 {[%clk 0:02:59]}  g6 {[%clk 0:02:59]} 3. Bg2 {[%clk 0:02:59]}  Bg7 {[%clk 0:03:00]} 4. d4 {[%clk 0:03:00]}  O-O {[%clk 0:03:01]} 5. O-O {[%clk 0:03:00]}  d6 {[%clk 0:03:01]} 6. c4 {[%clk 0:03:01]}  Nbd7 {[%clk 0:02:55]} 7. Nc3 {[%clk 0:03:00]}  e5 {[%clk 0:02:54]} 8. e4 {[%clk 0:03:01]}  exd4 {[%clk 0:02:52]} 9. Nxd4 {[%clk 0:03:02]}  Nc5 {[%clk 0:02:50]} 10. Re1 {[%clk 0:02:54]}  Re8 {[%clk 0:02:50]} 11. h3 {[%clk 0:02:45]}  Bd7 {[%clk 0:02:47]} 12. b4 {[%clk 0:02:37]}  Ne6 {[%clk 0:02:45]} 13. Be3 {[%clk 0:02:32]}  Qc8 {[%clk 0:02:44]} 14. Kh2 {[%clk 0:02:20]}  a5 {[%clk 0:02:41]} 15. Nxe6 {[%clk 0:01:40]}  Bxe6 {[%clk 0:02:39]} 16. Qb3 {[%clk 0:01:33]}  c6 {[%clk 0:01:56]} 17. Rad1 {[%clk 0:01:12]}  b5 {[%clk 0:01:55]} 18. Bf1 {[%clk 0:00:56]}  axb4 {[%clk 0:01:23]} 19. Qxb4 {[%clk 0:00:54]}  bxc4 {[%clk 0:01:22]} 20. Qxd6 {[%clk 0:00:40]}  Nd7 {[%clk 0:01:13]} 21. Bd4 {[%clk 0:00:32]}  Bf8 {[%clk 0:01:06]} 22. Qf4 {[%clk 0:00:32]}  Ra3 {[%clk 0:00:56]} 23. Re3 {[%clk 0:00:20]}  c5 {[%clk 0:00:52]} 24. Bf6 {[%clk 0:00:08]}  Nxf6 {[%clk 0:00:51]} 25. Qxf6 {[%clk 0:00:09]}  Bg7 {[%clk 0:00:50]} 26. Qf4 {[%clk 0:00:08]}  Rxc3 {[%clk 0:00:49]} 0-1


[Site "https://www.chess.com"]

[Event "Titled Tuesday Blitz April 4 Early 2023"]
[White "Flores, Diego"]
[Black "Chandreyee, Hajra"]
[WhiteFideId "108049"]
[BlackFideId "5056535"]
[WhiteElo "2613"]
[BlackElo "1725"]
[Result "1-0"]
[Round "01"]
[TimeControl "180+2"]
[Date "2023.04.04"]
[WhiteClock "0:01:48"]
[BlackClock "0:01:59"]

1. d4 {[%clk 0:02:58]}  e6 {[%clk 0:02:59]} 2. c4 {[%clk 0:02:57]}  f5 {[%clk 0:02:59]} 3. a3 {[%clk 0:02:56]}  Nf6 {[%clk 0:02:59]} 4. Nc3 {[%clk 0:02:53]}  Be7 {[%clk 0:02:59]} 5. g3 {[%clk 0:02:52]}  O-O {[%clk 0:02:59]} 6. Bg2 {[%clk 0:02:53]}  c6 {[%clk 0:02:55]} 7. d5 {[%clk 0:02:44]}  d6 {[%clk 0:02:47]} 8. Nh3 {[%clk 0:02:38]}  e5 {[%clk 0:02:43]} 9. O-O {[%clk 0:02:26]}  c5 {[%clk 0:02:33]} 10. Ng5 {[%clk 0:02:24]}  h6 {[%clk 0:02:28]} 11. Ne6 {[%clk 0:02:24]}  Bxe6 {[%clk 0:02:28]} 12. dxe6 {[%clk 0:02:25]}  Nc6 {[%clk 0:02:28]} 13. e4 {[%clk 0:02:07]}  fxe4 {[%clk 0:02:18]} 14. Nxe4 {[%clk 0:02:01]}  Rb8 {[%clk 0:02:15]} 15. Be3 {[%clk 0:01:57]}  Nxe4 {[%clk 0:02:06]} 16. Bxe4 {[%clk 0:01:57]}  Bg5 {[%clk 0:02:04]} 17. Bxg5 {[%clk 0:01:49]}  hxg5 {[%clk 0:01:59]} 18. Qh5 {[%clk 0:01:48]} 1-0


[Site "https://www.chess.com"]